fUST/lending_fUST_20240825
["ID","MTS","AMOUNT","RATE_DAILY","PERIOD"]
[335853344,1724532643039,-500.0,0.00013698,2]
[335853345,1724532643048,-594.61,0.00013698,2]
[335853346,1724532643058,-500.0,0.00013698,2]
[335853347,1724532643068,-500.0,0.00013698,2]
[335853348,1724532643078,-500.0,0.00013698,2]
[335853349,1724532643088,-500.0,0.00013698,2]
[335853350,1724532643098,-500.0,0.00013698,2]
[335853351,1724532643108,-500.0,0.00013698,2]
[335853352,1724532643117,-500.0,0.00013698,2]
[335853353,1724532643127,-709.16,0.00013698,2]
[335853354,1724532643136,-818.4,0.00013698,2]
[335853355,1724532643145,-763.21,0.00013698,2]
[335853356,1724532643155,-501.26450768,0.00013698,2]
[335853357,1724532643164,-500.0,0.00013698,2]
[335853358,1724532643174,-500.0,0.00013698,2]
[335853359,1724532643184,-500.0,0.00013698,2]
[335853360,1724532643193,-500.0,0.00013698,2]
[335853361,1724532643203,-500.0,0.00013698,2]
[335853362,1724532643214,-500.0,0.00013698,2]
[335853363,1724532643223,-500.0,0.00013698,2]
[335853364,1724532643233,-500.0,0.00013698,2]
[335853365,1724532643242,-500.0,0.00013698,2]
[335853366,1724532643252,-500.0,0.00013698,2]
[335853367,1724532643261,-500.0,0.00013698,2]
[335853368,1724532643271,-500.0,0.00013698,2]
[335853369,1724532643280,-509.51694536,0.00013698,2]
[335853370,1724532643289,-500.0,0.00013698,2]
[335853371,1724532643299,-500.0,0.00013698,2]
[335853372,1724532643308,-500.0,0.00013698,2]
[335853374,1724532643317,-500.0,0.00013698,2]
[335853375,1724532643327,-893.29,0.00013698,2]
[335853377,1724532643336,-500.0,0.00013698,2]
[335853379,1724532643346,-500.0,0.00013698,2]
[335853380,1724532643355,-500.0,0.00013698,2]
[335853382,1724532643364,-654.2,0.00013698,2]
[335853384,1724532643374,-500.0,0.00013698,2]
[335853386,1724532643384,-566.9,0.00013698,2]
[335853387,1724532643396,-500.0,0.00013698,2]
[335853389,1724532643406,-516.55611504,0.00013698,2]
[335853391,1724532643415,-500.0,0.00013698,2]
[335853392,1724532643425,-500.0,0.00013698,2]
[335853393,1724532643435,-546.67,0.00013698,2]
[335853394,1724532643445,-854.55,0.00013698,2]
[335853396,1724532643454,-500.0,0.00013698,2]
[335853397,1724532643464,-500.0,0.00013698,2]
[335853399,1724532643475,-500.0,0.00013698,2]
[335853401,1724532643485,-362.83108232,0.00013698,2]
[335853403,1724532644625,-500.0,0.00013673,2]
[335853404,1724532644634,-410.12896495,0.00013688,2]
[335853405,1724532644643,-560.59891768,0.00013698,2]
[335853406,1724532644652,-583.68,0.00013698,2]
[335853407,1724532644662,-500.0,0.00013698,2]
[335853408,1724532644671,-500.0,0.00013698,2]
[335853409,1724532644681,-500.0,0.00013698,2]
[335853410,1724532644690,-500.0,0.00013698,2]
[335853411,1724532644699,-500.0,0.00013698,2]
[335853412,1724532644709,-500.0,0.00013698,2]
[335853413,1724532644721,-500.0,0.00013698,2]
[335853414,1724532644730,-842.24,0.00013698,2]
[335853415,1724532644739,-500.0,0.00013698,2]
[335853416,1724532644748,-500.0,0.00013698,2]
[335853417,1724532644757,-755.96,0.00013698,2]
[335853418,1724532644766,-500.0,0.00013698,2]
[335853419,1724532644775,-500.0,0.00013698,2]
[335853420,1724532644784,-500.0,0.00013698,2]
[335853421,1724532644793,-500.0,0.00013698,2]
[335853422,1724532644802,-500.0,0.00013698,2]
[335853423,1724532644811,-500.24198974,0.00013698,2]
[335853424,1724532644820,-657.38,0.00013698,2]
[335853425,1724532644829,-500.0,0.00013698,2]
[335853426,1724532644838,-500.0,0.00013698,2]
[335853427,1724532644847,-727.51,0.00013698,2]
[335853428,1724532644856,-678.6,0.00013698,2]
[335853429,1724532644865,-500.0,0.00013698,2]
[335853430,1724532644874,-783.39,0.00013698,2]
[335853431,1724532644884,-500.0,0.00013698,2]
[335853432,1724532644893,-500.0,0.00013698,2]
[335853433,1724532644902,-500.0,0.00013698,2]
[335853434,1724532644912,-500.0,0.00013698,2]
[335853435,1724532644921,-853.54,0.00013698,2]
[335853436,1724532644930,-500.0,0.00013698,2]
[335853437,1724532644940,-500.0,0.00013698,2]
[335853438,1724532644949,-500.0,0.00013698,2]
[335853439,1724532644958,-500.0,0.00013698,2]
[335853440,1724532644971,-500.0,0.00013698,2]
[335853441,1724532644980,-505.24701066,0.00013698,2]
[335853442,1724532644990,-737.25,0.00013698,2]
[335853443,1724532644999,-500.0,0.00013698,2]
[335853444,1724532645008,-500.0,0.00013698,2]
[335853445,1724532645018,-500.0,0.00013698,2]
[335853446,1724532645028,-500.0,0.00013698,2]
[335853447,1724532645037,-500.0,0.00013698,2]
[335853448,1724532645046,-500.0,0.00013698,2]
[335853449,1724532645055,-500.0,0.00013698,2]
[335853450,1724532645065,-500.0,0.00013698,2]
[335853451,1724532645074,-500.0,0.00013698,2]
[335853452,1724532645083,-500.0,0.00013698,2]
[335853453,1724532645093,-500.0,0.00013698,2]
[335853454,1724532645103,-500.0,0.00013698,2]
[335853455,1724532645112,-500.0,0.00013698,2]
[335853456,1724532645121,-594.73,0.00013698,2]
[335853457,1724532645130,-500.0,0.00013698,2]
[335853458,1724532645139,-500.0,0.00013698,2]
[335853459,1724532645149,-500.0,0.00013698,2]
[335853460,1724532645158,-500.0,0.00013698,2]
[335853461,1724532645167,-568.21022219,0.00013698,2]
[335853462,1724532645176,-500.0,0.00013698,2]
[335853463,1724532645185,-840.37,0.00013698,2]
[335853464,1724532645194,-737.66,0.00013698,2]
[335853465,1724532645203,-500.0,0.00013698,2]
[335853466,1724532645217,-500.0,0.00013698,2]
[335853467,1724532645227,-500.0,0.00013698,2]
[335853468,1724532645236,-500.0,0.00013698,2]
[335853469,1724532645245,-881.02,0.00013698,2]
[335853470,1724532645254,-500.0,0.00013698,2]
[335853471,1724532645263,-500.0,0.00013698,2]
[335853472,1724532645273,-500.0,0.00013698,2]
[335853473,1724532645283,-859.33,0.00013698,2]
[335853474,1724532645291,-500.0,0.00013698,2]
[335853475,1724532645301,-500.0,0.00013698,2]
[335853476,1724532645310,-801.17,0.00013698,2]
[335853477,1724532645319,-500.0,0.00013698,2]
[335853478,1724532645329,-500.0,0.00013698,2]
[335853479,1724532645338,-500.0,0.00013698,2]
[335853480,1724532645348,-501.64,0.00013698,2]
[335853481,1724532645358,-500.0,0.00013698,2]
[335853482,1724532645367,-500.0,0.00013698,2]
[335853483,1724532645376,-857.13,0.00013698,2]
[335853484,1724532645385,-500.0,0.00013698,2]
[335853485,1724532645397,-500.0,0.00013698,2]
[335853486,1724532645406,-575.95,0.00013698,2]
[335853487,1724532645416,-500.0,0.00013698,2]
[335853488,1724532645425,-890.12,0.00013698,2]
[335853489,1724532645435,-711.95,0.00013698,2]
[335853490,1724532645444,-657.86,0.00013698,2]
[335853491,1724532645454,-522.31,0.00013698,2]
[335853492,1724532645467,-564.57,0.00013698,2]
[335853494,1724532645478,-500.0,0.00013698,2]
[335853495,1724532645488,-859.5,0.00013698,2]
[335853496,1724532645498,-500.0,0.00013698,2]
[335853497,1724532645507,-535.41,0.00013698,2]
[335853498,1724532645516,-500.0,0.00013698,2]
[335853499,1724532645526,-500.0,0.00013698,2]
[335853500,1724532645535,-500.0,0.00013698,2]
[335853501,1724532645544,-500.0,0.00013698,2]
[335853502,1724532645553,-500.0,0.00013698,2]
[335853503,1724532645563,-500.0,0.00013698,2]
[335853504,1724532645572,-500.0,0.00013698,2]
[335853505,1724532645582,-500.0,0.00013698,2]
[335853506,1724532645591,-500.0,0.00013698,2]
[335853507,1724532645600,-500.0,0.00013698,2]
[335853508,1724532645610,-500.0,0.00013698,2]
[335853509,1724532645619,-500.0,0.00013698,2]
[335853510,1724532645628,-500.0,0.00013698,2]
[335853511,1724532645637,-500.0,0.00013698,2]
[335853512,1724532645646,-611.67,0.00013698,2]
[335853513,1724532645655,-500.0,0.00013698,2]
[335853514,1724532645665,-500.0,0.00013698,2]
[335853515,1724532645674,-840.16,0.00013698,2]
[335853516,1724532645683,-500.0,0.00013698,2]
[335853517,1724532645692,-500.0,0.00013698,2]
[335853518,1724532645701,-500.0,0.00013698,2]
[335853519,1724532645714,-500.0,0.00013698,2]
[335853520,1724532645723,-513.84,0.00013698,2]
[335853521,1724532645731,-896.98,0.00013698,2]
[335853522,1724532645740,-1000.0,0.00013698,2]
[335853523,1724532645749,-500.0,0.00013698,2]
[335853524,1724532645758,-500.0,0.00013698,2]
[335853525,1724532645767,-737.65,0.00013698,2]
[335853526,1724532645776,-780.67,0.00013698,2]
[335853527,1724532645785,-585.61,0.00013698,2]
[335853528,1724532645794,-4246.52,0.00013698,2]
[335853529,1724532645804,-500.0,0.00013698,2]
[335853530,1724532645813,-500.0,0.00013698,2]
[335853531,1724532645822,-553.29,0.00013698,2]
[335853532,1724532645831,-500.0,0.00013698,2]
[335853533,1724532645840,-150.0,0.00013698,2]
[335853534,1724532645849,-538.66026253,0.00013698,2]
[335853535,1724532645860,-686.18,0.00013698,2]
[335853536,1724532645870,-500.0,0.00013698,2]
[335853537,1724532645879,-500.0,0.00013698,2]
[335853538,1724532645888,-298.95432508,0.00013698,2]
[335853539,1724532645898,-500.0,0.00013698,2]
[335853540,1724532645907,-698.52,0.00013698,2]
[335853541,1724532645916,-500.0,0.00013698,2]
[335853542,1724532645926,-500.0,0.00013698,2]
[335853543,1724532645936,-500.0,0.00013698,2]
[335853544,1724532645945,-643.83,0.00013698,2]
[335853545,1724532645955,-500.0,0.00013698,2]
[335853546,1724532645965,-500.0,0.00013698,2]
[335853547,1724532645974,-500.0,0.00013698,2]
[335853548,1724532645983,-500.0,0.00013698,2]
[335853549,1724532645992,-449.81063824,0.00013698,2]
[335853550,1724532646001,-500.0,0.00013698,2]
[335853551,1724532646010,-500.0,0.00013698,2]
[335853552,1724532646019,-840.8,0.00013698,2]
[335853553,1724532646028,-3662.74,0.00013698,2]
[335853554,1724532646037,-314.70762939,0.00013698,2]
[335853557,1724532646312,-506.00237061,0.00013698,2]
[335853558,1724532646321,-500.0,0.00013698,2]
[335853559,1724532646330,-500.0,0.00013698,2]
[335853560,1724532646339,-500.0,0.00013698,2]
[335853561,1724532646348,-807.55,0.00013698,2]
[335853562,1724532646357,-500.0,0.00013698,2]
[335853563,1724532646366,-500.0,0.00013698,2]
[335853564,1724532646375,-484.99131831,0.00013698,2]
[335853565,1724532646384,-500.0,0.00013698,2]
[335853566,1724532646396,-500.0,0.00013698,2]
[335853567,1724532646405,-500.0,0.00013698,2]
[335853568,1724532646414,-500.0,0.00013698,2]
[335853569,1724532646423,-534.06379751,0.00013698,2]
[335853570,1724532646432,-1939.6,0.00013698,2]
[335853571,1724532646442,-500.0,0.00013698,2]
[335853572,1724532646451,-804.66,0.00013698,2]
[335853573,1724532646460,-500.0,0.00013698,2]
[335853574,1724532646472,-500.0,0.00013698,2]
[335853575,1724532646481,-508.58177401,0.00013698,2]
[335853576,1724532646490,-4978.54643125,0.00013698,2]
[335853578,1724532660967,580.22,0.00010959,2]
[335854302,1724533299915,6323.77,0.0001211,2]
[335854318,1724533428024,154.74467129,0.00011999,2]
[335854354,1724533771622,539.44062594,0.00011999,3]
[335854451,1724533834994,35583.9119469,0.00012,2]
[335854464,1724533838309,-413.88106461,0.0001212,2]
[335854465,1724533838318,-49.72696077,0.0001263,2]
[335854466,1724533838329,-116.93970823,0.0001263,2]
[335854467,1724533838337,-210.0246244,0.00012689,2]
[335854468,1724533838346,-291.03983902,0.00012779,2]
[335854469,1724533839229,166.666669,0.00012005,2]
[335854488,1724533842536,-166.666669,0.00012318,2]
[335854490,1724533842546,-166.666669,0.00012631,2]
[335854491,1724533842557,-501.49829532,0.00012779,2]
[335854492,1724533842567,-527.64707,0.00012877,2]
[335854493,1724533842577,-309.18063735,0.00012898,2]
[335854494,1724533842586,-650.27636205,0.00012934,2]
[335854495,1724533842596,-154.76012181,0.00012934,2]
[335854496,1724533842606,-521.61080417,0.00012934,2]
[335854497,1724533842616,-167.3293178,0.00012971,2]
[335854498,1724533842625,-300.0,0.00012999,2]
[335854499,1724533842635,-300.0,0.00012999,2]
[335854500,1724533842648,-862.94176999,0.00013,2]
[335854501,1724533842658,-500.0,0.00013,2]
[335854502,1724533842667,-213.52341313,0.00013051,2]
[335854503,1724533842677,-233.53534236,0.0001325,2]
[335854504,1724533842687,-50496.08289894,0.00013468,2]
[335854505,1724533842699,-327.91520015,0.00013468,2]
[335854514,1724533843320,-52553.12484291,0.00013468,2]
[335854516,1724533843330,-37552.16511755,0.00013478,2]
[335854517,1724533843376,-1268.8858874,0.00013478,2]
[335854532,1724533846169,-782.65797788,0.00013478,2]
[335854533,1724533846182,-3032.52533185,0.00013478,2]
[335854534,1724533846225,-46251.76568532,0.00013478,2]
[335854535,1724533846234,-23441.18536535,0.00013488,2]
[335854536,1724533846244,-5720.57521366,0.00013529,2]
[335854537,1724533846254,-2000.0,0.00013588,2]
[335854538,1724533846264,-495.40667807,0.00013599,2]
[335854539,1724533846274,-2500.0,0.000136,2]
[335854540,1724533846283,-150.112233,0.000136,2]
[335854542,1724533846292,-150.112233,0.000136,2]
[335854543,1724533846302,-199.00583108,0.00013673,2]
[335854544,1724533846311,-500.0,0.00013673,2]
[335854545,1724533846320,-500.0,0.00013673,2]
[335854546,1724533846330,-500.0,0.00013673,2]
[335854547,1724533846339,-150.0,0.00013673,2]
[335854548,1724533846348,-256.52337163,0.00013688,2]
[335854549,1724533846358,-45036.29952407,0.00013688,2]
[335856822,1724534991932,868.17096,7e-05,2]
[335856830,1724535029606,666.26375878,8.485e-05,2]
[335856844,1724535032410,-501.264716,0.00012877,2]
[335856845,1724535032419,-170.06530115,0.000129,2]
[335856846,1724535032431,-1514.57206024,0.000129,2]
[335856847,1724535035386,271.58172866,8.485e-05,2]
[335856901,1724535038662,-7038.89722924,0.000129,2]
[335856903,1724535038672,-270.51147954,0.00012934,7]
[335856905,1724535038682,-520.92060091,0.00012934,2]
[335856907,1724535038692,-300.0,0.0001297,2]
[335856909,1724535038702,-300.0,0.0001297,2]
[335856911,1724535038712,-695.14803561,0.00012989,2]
[335856912,1724535038722,-35149.41,0.00012999,2]
[335856913,1724535038732,-161.09793029,0.00012999,2]
[335856915,1724535038743,-154.74467129,0.00012999,2]
[335856917,1724535038752,-670.84968892,0.00013,2]
[335856919,1724535038762,-155.2893237,0.00013025,2]
[335856921,1724535038772,-495.40667807,0.00013051,2]
[335856923,1724535038782,-5720.57521366,0.00013264,2]
[335856925,1724535038792,-6022.95649356,0.00013478,2]
[335856927,1724535038802,-2000.0,0.00013478,2]
[335856929,1724535038811,-116456.215736,0.00013488,2]
[335856931,1724535038820,-209.7598205,0.00013497,2]
[335856933,1724535038830,-56811.99409641,0.00013498,2]
[335856935,1724535038840,-6022.95649356,0.00013508,2]
[335856937,1724535038849,-6022.95649356,0.00013538,2]
[335856939,1724535038859,-6022.95649356,0.00013568,2]
[335856941,1724535038869,-116456.215736,0.00013588,2]
[335856943,1724535038878,-265.47824187,0.00013597,2]
[335856945,1724535038888,-6022.95649356,0.00013598,2]
[335856947,1724535038898,-40000.0,0.00013598,2]
[335856949,1724535038908,-150.112233,0.000136,2]
[335856951,1724535038917,-150.112233,0.000136,2]
[335856954,1724535038927,-150.112233,0.000136,2]
[335856956,1724535038938,-150.112233,0.000136,2]
[335856958,1724535038948,-150.112233,0.000136,2]
[335856960,1724535038958,-150.112233,0.000136,2]
[335856962,1724535038967,-150.112233,0.000136,2]
[335856964,1724535038977,-150.112233,0.000136,2]
[335856966,1724535038986,-150.112233,0.000136,2]
[335856968,1724535038996,-159.0,0.00013673,2]
[335856970,1724535039005,-500.0,0.00013673,2]
[335856972,1724535039015,-500.0,0.00013673,2]
[335856974,1724535039024,-500.0,0.00013673,2]
[335856976,1724535039034,-500.0,0.00013673,2]
[335856978,1724535039044,-240.19126813,0.00013688,2]
[335856980,1724535039054,-405.23584646,0.00013688,2]
[335856982,1724535039063,-654.38310238,0.00013688,2]
[335856984,1724535039073,-700.27571865,0.00013688,2]
[335856986,1724535039083,-886.51060802,0.00013688,2]
[335856988,1724535039092,-232912.431472,0.00013688,2]
[335856990,1724535039102,-500.0,0.00013698,2]
[335856992,1724535039111,-492.73832656,0.00013698,2]
[335856994,1724535039120,-500.0,0.00013698,2]
[335856996,1724535039130,-500.0,0.00013698,2]
[335856998,1724535039139,-500.00000001,0.00013698,2]
[335857000,1724535039149,-500.0,0.00013698,2]
[335857002,1724535039159,-192.73832655,0.00013698,2]
[335857004,1724535039168,-300.0,0.00013698,2]
[335857006,1724535039178,-500.0,0.00013698,2]
[335857008,1724535039187,-155.12815248,0.00013698,2]
[335857010,1724535039197,-500.0,0.00013698,2]
[335857012,1724535039206,-343.71975671,0.00013698,2]
[335857014,1724535039215,-500.0,0.00013698,2]
[335857016,1724535039225,-492.73832655,0.00013698,2]
[335857018,1724535039235,-506.99417169,0.00013698,2]
[335857020,1724535039245,-500.0,0.00013698,2]
[335857022,1724535039256,-500.0,0.00013698,2]
[335857024,1724535039267,-500.0,0.00013698,2]
[335857026,1724535039277,-500.0,0.00013698,2]
[335857028,1724535039286,-500.0,0.00013698,2]
[335857030,1724535039295,-500.0,0.00013698,2]
[335857032,1724535039306,-500.0,0.00013698,2]
[335857034,1724535039316,-500.0,0.00013698,2]
[335857036,1724535039325,-500.0,0.00013698,2]
[335857038,1724535039337,-500.0,0.00013698,2]
[335857040,1724535039347,-500.0,0.00013698,2]
[335857042,1724535039356,-500.0,0.00013698,2]
[335857044,1724535039365,-500.0,0.00013698,2]
[335857046,1724535039375,-500.0,0.00013698,2]
[335857048,1724535039385,-500.0,0.00013698,2]
[335857050,1724535039395,-500.0,0.00013698,2]
[335857052,1724535039404,-500.0,0.00013698,2]
[335857054,1724535039414,-500.0,0.00013698,2]
[335857056,1724535039424,-500.0,0.00013698,2]
[335857058,1724535039433,-500.0,0.00013698,2]
[335857060,1724535039444,-500.0,0.00013698,2]
[335857062,1724535039454,-154.74467129,0.00013698,2]
[335857064,1724535039464,-500.0,0.00013698,2]
[335857066,1724535039473,-500.0,0.00013698,2]
[335857068,1724535039482,-707.48,0.00013698,2]
[335857070,1724535039493,-500.0,0.00013698,2]
[335857073,1724535039502,-500.0,0.00013698,2]
[335857074,1724535039512,-500.0,0.00013698,2]
[335857076,1724535039521,-500.0,0.00013698,2]
[335857079,1724535039531,-500.0,0.00013698,2]
[335857081,1724535039541,-500.0,0.00013698,2]
[335857083,1724535039550,-500.0,0.00013698,2]
[335857085,1724535039560,-678.6,0.00013698,2]
[335857087,1724535039570,-500.0,0.00013698,2]
[335857089,1724535039579,-500.0,0.00013698,2]
[335857091,1724535039589,-1048.57,0.00013698,2]
[335857093,1724535039598,-513.24810199,0.00013698,2]
[335857095,1724535039608,-1048.57,0.00013698,2]
[335857097,1724535039617,-1048.57,0.00013698,2]
[335857099,1724535039626,-1048.57,0.00013698,2]
[335857101,1724535039636,-1048.57,0.00013698,2]
[335857103,1724535039645,-1048.57,0.00013698,2]
[335857105,1724535039656,-500.0,0.00013698,2]
[335857107,1724535039666,-1048.57,0.00013698,2]
[335857109,1724535039676,-1048.57,0.00013698,2]
[335857111,1724535039686,-1048.57,0.00013698,2]
[335857113,1724535039696,-1048.57,0.00013698,2]
[335857115,1724535039706,-1048.57,0.00013698,2]
[335857117,1724535039716,-1048.57,0.00013698,2]
[335857119,1724535039725,-1048.57,0.00013698,2]
[335857121,1724535039735,-1048.57,0.00013698,2]
[335857123,1724535039744,-1048.57,0.00013698,2]
[335857125,1724535039754,-1048.57,0.00013698,2]
[335857127,1724535039763,-1048.57,0.00013698,2]
[335857129,1724535039773,-1048.57,0.00013698,2]
[335857131,1724535039782,-1048.57,0.00013698,2]
[335857133,1724535039792,-1048.57,0.00013698,2]
[335857135,1724535039802,-1048.57,0.00013698,2]
[335857137,1724535039811,-1048.57,0.00013698,2]
[335857139,1724535039822,-1048.57,0.00013698,2]
[335857141,1724535039832,-1048.57,0.00013698,2]
[335857143,1724535039842,-500.0,0.00013698,2]
[335857145,1724535039852,-500.0,0.00013698,2]
[335857147,1724535039862,-500.0,0.00013698,2]
[335857149,1724535039873,-801.17,0.00013698,2]
[335857151,1724535039882,-502.89244034,0.00013698,2]
[335857153,1724535039892,-500.0,0.00013698,2]
[335857155,1724535039901,-500.0,0.00013698,2]
[335857157,1724535039911,-500.0,0.00013698,2]
[335857159,1724535039920,-568.21022219,0.00013698,2]
[335857161,1724535039929,-500.0,0.00013698,2]
[335857163,1724535039939,-500.0,0.00013698,2]
[335857166,1724535039948,-500.0,0.00013698,2]
[335857168,1724535039958,-616.21891281,0.00013698,2]
[335857170,1724535039967,-500.0,0.00013698,2]
[335857172,1724535039977,-500.0,0.00013698,2]
[335857174,1724535039986,-500.0,0.00013698,2]
[335857176,1724535039995,-500.0,0.00013698,2]
[335857178,1724535040004,-500.0,0.00013698,2]
[335857180,1724535040014,-657.86,0.00013698,2]
[335857183,1724535040024,-500.0,0.00013698,2]
[335857185,1724535040035,-500.0,0.00013698,2]
[335857187,1724535040045,-500.0,0.00013698,2]
[335857189,1724535040055,-500.0,0.00013698,2]
[335857191,1724535040065,-657.38,0.00013698,2]
[335857193,1724535040076,-500.0,0.00013698,2]
[335857195,1724535040085,-500.0,0.00013698,2]
[335857197,1724535040096,-500.0,0.00013698,2]
[335857199,1724535040107,-500.0,0.00013698,2]
[335857202,1724535040117,-500.0,0.00013698,2]
[335857204,1724535040128,-737.65,0.00013698,2]
[335857206,1724535040139,-500.0,0.00013698,2]
[335857208,1724535040150,-500.0,0.00013698,2]
[335857210,1724535040160,-500.0,0.00013698,2]
[335857212,1724535040170,-522.31,0.00013698,2]
[335857214,1724535040179,-781.63,0.00013698,2]
[335857216,1724535040188,-500.0,0.00013698,2]
[335857218,1724535040197,-500.0,0.00013698,2]
[335857220,1724535040206,-150.0,0.00013698,2]
[335857222,1724535040216,-500.0,0.00013698,2]
[335857224,1724535040225,-500.0,0.00013698,2]
[335857226,1724535040234,-500.0,0.00013698,2]
[335857228,1724535040243,-538.66026253,0.00013698,2]
[335857230,1724535040253,-500.0,0.00013698,2]
[335857233,1724535040265,-773.9,0.00013698,2]
[335857235,1724535040275,-500.0,0.00013698,2]
[335857237,1724535040284,-546.67,0.00013698,2]
[335857239,1724535040293,-500.0,0.00013698,2]
[335857241,1724535040303,-500.0,0.00013698,2]
[335857243,1724535040312,-840.8,0.00013698,2]
[335857245,1724535040321,-553.29,0.00013698,2]
[335857246,1724535040332,-583.68,0.00013698,2]
[335857249,1724535040342,-500.0,0.00013698,2]
[335857251,1724535040352,-500.0,0.00013698,2]
[335857253,1724535040363,-500.0,0.00013698,2]
[335857255,1724535040372,-325.22299602,0.00013698,2]
[335857257,1724535040381,-255.02287104,0.00013698,2]
[335857259,1724535040391,-874.74,0.00013698,2]
[335857261,1724535040401,-500.0,0.00013698,2]
[335857263,1724535040410,-503.11997067,0.00013698,2]
[335857265,1724535040420,-500.0,0.00013698,2]
[335857267,1724535040429,-500.0,0.00013698,2]
[335857269,1724535040439,-500.0,0.00013698,2]
[335857271,1724535040448,-500.0,0.00013698,2]
[335857273,1724535040458,-500.0,0.00013698,2]
[335857274,1724535040468,-500.0,0.00013698,2]
[335857275,1724535040478,-500.0,0.00013698,2]
[335857276,1724535040487,-500.0,0.00013698,2]
[335857277,1724535040496,-500.0,0.00013698,2]
[335857278,1724535040506,-500.0,0.00013698,2]
[335857279,1724535040515,-500.0,0.00013698,2]
[335857280,1724535040525,-500.0,0.00013698,2]
[335857282,1724535040534,-500.0,0.00013698,2]
[335857285,1724535040544,-500.0,0.00013698,2]
[335857287,1724535040553,-557.09,0.00013698,2]
[335857289,1724535040563,-500.0,0.00013698,2]
[335857291,1724535040572,-611.67,0.00013698,2]
[335857293,1724535040581,-500.0,0.00013698,2]
[335857295,1724535040591,-500.0,0.00013698,2]
[335857297,1724535040600,-500.0,0.00013698,2]
[335857299,1724535040609,-901.51,0.00013698,2]
[335857301,1724535040619,-500.0,0.00013698,2]
[335857303,1724535040628,-586.91,0.00013698,2]
[335857305,1724535040638,-500.0,0.00013698,2]
[335857307,1724535040647,-500.0,0.00013698,2]
[335857309,1724535040656,-500.0,0.00013698,2]
[335857311,1724535040666,-500.0,0.00013698,2]
[335857313,1724535040675,-500.0,0.00013698,2]
[335857314,1724535040685,-500.0,0.00013698,2]
[335857316,1724535040694,-737.66,0.00013698,2]
[335857318,1724535040704,-383.87172621,0.00013698,2]
[335857320,1724535040713,-500.0,0.00013698,2]
[335857322,1724535040722,-588.09,0.00013698,2]
[335857324,1724535040732,-500.0,0.00013698,2]
[335857326,1724535040741,-500.0,0.00013698,2]
[335857328,1724535040750,-500.0,0.00013698,2]
[335857330,1724535040759,-500.0,0.00013698,2]
[335857332,1724535040769,-859.33,0.00013698,2]
[335857334,1724535040778,-500.0,0.00013698,2]
[335857336,1724535040787,-500.0,0.00013698,2]
[335857338,1724535040796,-500.0,0.00013698,2]
[335857340,1724535040806,-792.08,0.00013698,2]
[335857342,1724535040815,-500.0,0.00013698,2]
[335857344,1724535040824,-193.80537047,0.00013698,2]
[335857346,1724535040833,-594.56,0.00013698,2]
[335857348,1724535040843,-500.0,0.00013698,2]
[335857350,1724535040853,-500.0,0.00013698,2]
[335857353,1724535040862,-500.0,0.00013698,2]